Workbook

Sheet Steuerung
B2: Industriekalkulation
D4: Ermittlung des Angebotspreises
D7: Ermittlung der Obergrenze des Materialaufwandes
D10: Berechnung des zu erwarteten Gewinns

Sheet Vorwärtskalkulation
B2: Vorwärtskalkulation
B3: Ermittlung des Angebotspreises
B5: Kalkulationsschema | C5: % | D5: € | E5: €
B6: Fertigungsmaterial | D6: 250
B7: + Materialgemeinkosten | C7: 12 | D7: =D6*C7/100 -> 30
B8: = Materialkosten | E8: =D6+D7 -> 280
B9: Fertigungslöhne | D9: 250
B10: + Fertigungsgemeinkosten | C10: 125 | D10: =D9*C10/100 -> 312.5
B11: = Fertigungskosten | E11: =D9+D10 -> 562.5
B12: = Herstellkosten | E12: =E8+E11 -> 842.5
B13: + Verwaltungsgemeinkosten | C13: 8 | E13: =E12*C13/100 -> 67.4
B14: + Vertriebsgemeinkosten | C14: 9 | E14: =E12*C14/100 -> 75.825
B15: = Selbstkosten | E15: =E12+E13+E14 -> 985.725
B16: + Gewinn | C16: 10 | E16: =E15*C16/100 -> 98.5725
B17: = Barverkaufspreis | E17: =E15+E16 -> 1084.2975
B18: + Kundenskonto | C18: 3 | E18: =(E17*C18)/(100-C18-C19) -> 33.53497423
B19: + Vertreterprovision | C19: 0 | E19: =(E17*C19)/(100-C18-C19) -> 0
B20: = Zielverkaufspreis | E20: =E17+E18+E19 -> 1117.832474
B21: + Kundenrabatt | C21: 20 | E21: =(E20*C21)/(100-C21) -> 279.4581186
B22: = Nettoverkaufspreis | E22: =ROUND(E20+E21,2) -> 1397.29
B26: Angebotspreis in €

Sheet Rückwärtskalkulation
B2: Rückwärtskalkulation
B3: Ermittlung der Obergrenze des Materialaufwandes
B5: Kalkulationsschema | C5: % | D5: € | E5: €
B6: Fertigungsmaterial | D6: =ROUND(E8-D7,2) -> 1019.29
B7: + Materialgemeinkosten | C7: 12 | D7: =(E8*C7)/(100+C7) -> 122.3151848
B8: = Materialkosten | E8: =E12-E11 -> 1141.608392
B9: Fertigungslöhne | D9: 1000
B10: + Fertigungsgemeinkosten | C10: 125 | D10: =D9*C10/100 -> 1250
B11: = Fertigungskosten | E11: =D9+D10 -> 2250
B12: = Herstellkosten | E12: =E15-E14-E13 -> 3391.608392
B13: + Verwaltungsgemeinkosten | C13: 8 | E13: =(E15*C13)/(100+C13+C14) -> 271.3286713
B14: + Vertriebsgemeinkosten | C14: 9 | E14: =(E15*C14)/(100+C13+C14) -> 305.2447552
B15: = Selbstkosten | E15: =E17-E16 -> 3968.181818
B16: + Gewinn | C16: 10 | E16: =(E17*C16)/(100+C16) -> 396.8181818
B17: = Barverkaufspreis | E17: =E20-E19-E18 -> 4365
B18: + Kundenskonto | C18: 3 | E18: =E20*C18/100 -> 135
B19: + Vertreterprovision | C19: 0 | E19: =E20*C19/100 -> 0
B20: = Zielverkaufspreis | E20: =E22-E21 -> 4500
B21: + Kundenrabatt | C21: 25 | E21: =E22*C21/100 -> 1500
B22: = Nettoverkaufspreis | E22: 6000
B26: höchster Materialaufwand in €

Sheet Differenzkalkulation
B2: Differenzkalkulation
B3: Berechnung des zu erwartenden Gewinns
B5: Kalkulationsschema | C5: % | D5: € | E5: €
B6: Fertigungsmaterial | D6: 1000
B7: + Materialgemeinkosten | C7: 12 | D7: =D6*C7/100 -> 120
B8: = Materialkosten | E8: =D6+D7 -> 1120
B9: Fertigungslöhne | D9: 1000
B10: + Fertigungsgemeinkosten | C10: 125 | D10: =D9*C10/100 -> 1250
B11: = Fertigungskosten | E11: =D9+D10 -> 2250
B12: = Herstellkosten | E12: =E8+E11 -> 3370
B13: + Verwaltungsgemeinkosten | C13: 8 | E13: =E12*C13/100 -> 269.6
B14: + Vertriebsgemeinkosten | C14: 9 | E14: =E12*C14/100 -> 303.3
B15: = Selbstkosten | E15: =E12+E13+E14 -> 3942.9
B16: + Gewinn | C16: =ROUND(E16*100/E15,2) -> 4.56 | E16: =ROUND(E17-E15,2) -> 179.6
B17: = Barverkaufspreis | E17: =E20-E19-E18 -> 4122.5
B18: + Kundenskonto | C18: 3 | E18: =E20*C18/100 -> 127.5
B19: + Vertreterprovision | C19: 0 | E19: =E20*C19/100 -> 0
B20: = Zielverkaufspreis | E20: =E22-E21 -> 4250
B21: + Kundenrabatt | C21: 0 | E21: =E22*C21/100 -> 0
B22: = Nettoverkaufspreis | E22: 4250
B26: erwarteter Gewinn
B28: € %
